fUSD/lending_fUSD_20250120
["ID","MTS","AMOUNT","RATE_DAILY","PERIOD"]
[349690155,1737377468234,-874.79,0.00020353,2]
[349690156,1737377468243,-1402.18,0.00020353,2]
[349690157,1737377468252,-500.0,0.00020353,2]
[349690158,1737377468263,-1129.67,0.00020353,2]
[349690159,1737377468277,-535.06,0.00020353,2]
[349690160,1737377468287,-2752.84,0.00020353,2]
[349690161,1737377468297,-500.0,0.00020356,2]
[349690162,1737377468306,-207.15268685,0.00020356,2]
[349690163,1737377468315,-204.71864207,0.00020362,2]
[349690164,1737377468324,-1340.5827597,0.00020376,2]
[349690165,1737377468333,-284.7,0.00020379,2]
[349690166,1737377468343,-506.24799734,0.00020384,2]
[349690167,1737377468352,-282.63,0.00020398,2]
[349690168,1737377468361,-529.25,0.00020412,2]
[349690169,1737377468370,-161.27208987,0.00020447,2]
[349690170,1737377468379,-204.71864207,0.00020515,2]
[349690171,1737377468388,-500.0,0.00020547,2]
[349690172,1737377468398,-500.0,0.00020547,2]
[349690173,1737377468407,-500.0,0.00020547,2]
[349690174,1737377468416,-546.17,0.00020547,2]
[349690175,1737377468425,-500.0,0.00020547,2]
[349690176,1737377468435,-517.53324149,0.00020547,2]
[349690177,1737377468444,-500.0,0.00020547,2]
[349690178,1737377468453,-500.0,0.00020547,2]
[349690179,1737377468462,-500.0,0.00020547,2]
[349690180,1737377468471,-500.0,0.00020547,2]
[349690181,1737377468480,-500.0,0.00020547,2]
[349690182,1737377468489,-500.0,0.00020547,2]
[349690183,1737377468498,-500.0,0.00020547,2]
[349690184,1737377468507,-796.95,0.00020547,2]
[349690185,1737377468516,-500.0,0.00020547,2]
[349690186,1737377468527,-500.0,0.00020547,2]
[349690187,1737377468537,-500.0,0.00020547,2]
[349690188,1737377468546,-622.67,0.00020547,2]
[349690189,1737377468555,-500.0,0.00020547,2]
[349690190,1737377468564,-500.0,0.00020547,2]
[349690191,1737377468573,-500.0,0.00020547,2]
[349690192,1737377468582,-500.0,0.00020547,2]
[349690193,1737377468591,-500.0,0.00020547,2]
[349690194,1737377468609,-500.0,0.00020547,2]
[349690195,1737377468619,-500.0,0.00020547,2]
[349690196,1737377468628,-500.0,0.00020547,2]
[349690197,1737377468639,-500.0,0.00020547,2]
[349690198,1737377468648,-638.44,0.00020547,2]
[349690199,1737377468657,-500.0,0.00020547,2]
[349690200,1737377468667,-519.54507156,0.00020547,2]
[349690201,1737377468676,-500.0,0.00020547,2]
[349690202,1737377468686,-500.0,0.00020547,2]
[349690203,1737377468695,-606.47,0.00020547,2]
[349690204,1737377468705,-500.0,0.00020547,2]
[349690205,1737377468714,-754.5,0.00020547,2]
[349690206,1737377468723,-526.69,0.00020547,2]
[349690207,1737377468733,-500.0,0.00020547,2]
[349690208,1737377468742,-500.0,0.00020547,2]
[349690209,1737377468752,-500.0,0.00020547,2]
[349690210,1737377468761,-500.0,0.00020547,2]
[349690211,1737377468773,-686.68,0.00020547,2]
[349690212,1737377468783,-500.0,0.00020547,2]
[349690213,1737377468792,-500.0,0.00020547,2]
[349690214,1737377468802,-500.0,0.00020547,2]
[349690215,1737377468811,-637.24090478,0.00020547,2]
[349690216,1737377468820,-500.0,0.00020547,2]
[349690217,1737377468830,-500.0,0.00020547,2]
[349690218,1737377468839,-500.0,0.00020547,2]
[349690219,1737377468848,-500.0,0.00020547,2]
[349690220,1737377468857,-500.0,0.00020547,2]
[349690221,1737377468866,-500.0,0.00020547,2]
[349690222,1737377468875,-837.57,0.00020547,2]
[349690223,1737377468884,-500.0,0.00020547,2]
[349690224,1737377468894,-500.0,0.00020547,2]
[349690225,1737377468903,-500.0,0.00020547,2]
[349690226,1737377468912,-500.0,0.00020547,2]
[349690227,1737377468923,-500.0,0.00020547,2]
[349690228,1737377468932,-895.09,0.00020547,2]
[349690229,1737377468941,-500.0,0.00020547,2]
[349690230,1737377468951,-1166.48,0.00020547,2]
[349690231,1737377468960,-992.96,0.00020547,2]
[349690232,1737377468969,-500.0,0.00020547,2]
[349690233,1737377468979,-500.0,0.00020547,2]
[349690234,1737377468989,-1201.46,0.00020547,2]
[349690235,1737377468998,-500.0,0.00020547,2]
[349690236,1737377469008,-500.0,0.00020547,2]
[349690237,1737377469019,-500.0,0.00020547,2]
[349690238,1737377469032,-500.0,0.00020547,2]
[349690239,1737377469041,-500.0,0.00020547,2]
[349690240,1737377469050,-500.0,0.00020547,2]
[349690241,1737377469059,-533.19,0.00020547,2]
[349690242,1737377469070,-500.0,0.00020547,2]
[349690243,1737377469079,-500.0,0.00020547,2]
[349690244,1737377469088,-500.0,0.00020547,2]
[349690245,1737377469098,-500.0,0.00020547,2]
[349690246,1737377469107,-500.0,0.00020547,2]
[349690247,1737377469116,-1289.76,0.00020547,2]
[349690248,1737377469125,-500.0,0.00020547,2]
[349690249,1737377469135,-743.97,0.00020547,2]
[349690250,1737377469144,-500.0,0.00020547,2]
[349690251,1737377469154,-500.0,0.00020547,2]
[349690252,1737377469164,-500.0,0.00020547,2]
[349690253,1737377469173,-500.0,0.00020547,2]
[349690254,1737377469182,-422.56226958,0.00020547,2]
[349690255,1737377469192,-500.0,0.00020547,2]
[349690256,1737377469201,-500.0,0.00020547,2]
[349690257,1737377469210,-771.55,0.00020547,2]
[349690258,1737377469219,-1230.0,0.00020547,2]
[349690259,1737377469229,-500.0,0.00020547,2]
[349690260,1737377469238,-500.0,0.00020547,2]
[349690261,1737377469247,-500.0,0.00020547,2]
[349690262,1737377469256,-500.0,0.00020547,2]
[349690263,1737377469266,-500.0,0.00020547,2]
[349690264,1737377469276,-500.0,0.00020547,2]
[349690265,1737377469285,-500.0,0.00020547,2]
[349690266,1737377469294,-500.0,0.00020547,2]
[349690267,1737377469304,-500.0,0.00020547,2]
[349690268,1737377469313,-500.0,0.00020547,2]
[349690269,1737377469322,-500.0,0.00020547,2]
[349690270,1737377469332,-500.0,0.00020547,2]
[349690271,1737377469341,-500.0,0.00020547,2]
[349690272,1737377469350,-500.0,0.00020547,2]
[349690273,1737377469360,-1612.66,0.00020547,2]
[349690274,1737377469369,-500.0,0.00020547,2]
[349690275,1737377469378,-500.0,0.00020547,2]
[349690276,1737377469387,-543.89326692,0.00020547,2]
[349690277,1737377469396,-500.0,0.00020547,2]
[349690278,1737377469405,-536.54,0.00020547,2]
[349690279,1737377469415,-3644.75,0.00020547,2]
[349690280,1737377469425,-500.0,0.00020547,2]
[349690281,1737377469435,-500.0,0.00020547,2]
[349690282,1737377469444,-500.0,0.00020547,2]
[349690283,1737377469453,-500.0,0.00020547,2]
[349690284,1737377469463,-626.19,0.00020547,2]
[349690285,1737377469472,-500.0,0.00020547,2]
[349690286,1737377469482,-756.469785,0.00020547,2]
[349690287,1737377469491,-500.0,0.00020547,2]
[349690288,1737377469500,-500.0,0.00020547,2]
[349690289,1737377469509,-500.0,0.00020547,2]
[349690290,1737377469519,-1134.53,0.00020547,2]
[349690291,1737377469529,-5822.0,0.00020547,2]
[349690292,1737377469539,-500.0,0.00020547,2]
[349690293,1737377469549,-732.04,0.00020547,2]
[349690294,1737377469558,-500.0,0.00020547,2]
[349690295,1737377469567,-1092.62,0.00020547,2]
[349690296,1737377469576,-923.97,0.00020547,2]
[349690297,1737377469586,-970.989995,0.00020547,2]
[349690298,1737377469595,-500.0,0.00020547,2]
[349690299,1737377469604,-1139.04,0.00020547,2]
[349690300,1737377469614,-1401.76,0.00020547,2]
[349690301,1737377469623,-500.0,0.00020547,2]
[349690302,1737377469632,-500.0,0.00020547,2]
[349690303,1737377469642,-500.0,0.00020547,2]
[349690304,1737377469651,-2199.52,0.00020547,2]
[349690305,1737377469662,-1107.27,0.00020547,2]
[349690306,1737377469672,-500.0,0.00020547,2]
[349690307,1737377469682,-500.0,0.00020547,2]
[349690308,1737377469692,-1073.92,0.00020547,2]
[349690309,1737377469702,-574.83,0.00020547,2]
[349690310,1737377469712,-500.0,0.00020547,2]
[349690311,1737377469721,-3230.06,0.00020547,2]
[349690312,1737377469730,-500.0,0.00020547,2]
[349690313,1737377469740,-500.0,0.00020547,2]
[349690314,1737377469750,-500.0,0.00020547,2]
[349690315,1737377469760,-952.22,0.00020547,2]
[349690316,1737377469941,-582.05,0.00020547,2]
[349690317,1737377469953,-3658.7,0.00020547,2]
[349690318,1737377469963,-1103.21,0.00020547,2]
[349690319,1737377469972,-1237.78,0.00020547,2]
[349690320,1737377469981,-500.0,0.00020547,2]
[349690321,1737377469990,-500.0,0.00020547,2]
[349690322,1737377469999,-993.94,0.00020547,2]
[349690323,1737377470009,-1503.85,0.00020547,2]
[349690324,1737377470020,-1228.19,0.00020547,2]
[349690325,1737377470032,-639.92,0.00020547,2]
[349690326,1737377470041,-1377.98,0.00020547,2]
[349690327,1737377470051,-500.0,0.00020547,2]
[349690328,1737377470060,-530.1,0.00020547,2]
[349690329,1737377470071,-500.0,0.00020547,2]
[349690330,1737377470080,-1560.84,0.00020547,2]
[349690331,1737377470089,-500.0,0.00020547,2]
[349690332,1737377470099,-752.57,0.00020547,2]
[349690333,1737377470108,-1797.36,0.00020547,2]
[349690334,1737377470117,-3077.66,0.00020547,2]
[349690335,1737377470127,-876.3,0.00020547,2]
[349690336,1737377470137,-714.91,0.00020547,2]
[349690337,1737377470147,-267.08841891,0.00020547,2]
[349690338,1737377470157,-1303.67,0.00020547,2]
[349690339,1737377470167,-876.98,0.00020547,2]
[349690340,1737377470176,-2597.81,0.00020547,2]
[349690341,1737377470186,-1827.08,0.00020547,2]
[349690342,1737377470195,-1615.3,0.00020547,2]
[349690343,1737377470206,-500.0,0.00020547,2]
[349690344,1737377470215,-2483.31,0.00020547,2]
[349690345,1737377470225,-2780.47,0.00020547,2]
[349690346,1737377470234,-500.0,0.00020547,2]
[349690347,1737377470245,-3105.24,0.00020547,2]
[349690348,1737377470256,-1130.17,0.00020547,2]
[349690349,1737377470265,-1288.7,0.00020547,2]
[349690350,1737377470277,-647.49,0.00020547,2]
[349690351,1737377470287,-3353.58,0.00020547,2]
[349690352,1737377470296,-1811.0,0.00020547,2]
[349690353,1737377470306,-1109.6,0.00020547,2]
[349690354,1737377470316,-500.0,0.00020547,2]
[349690355,1737377470328,-500.0,0.00020547,2]
[349690356,1737377470338,-751.49,0.00020547,2]
[349690357,1737377470349,-944.91,0.00020547,2]
[349690358,1737377470359,-500.0,0.00020547,2]
[349690359,1737377470368,-899.05,0.00020547,2]
[349690360,1737377470378,-3103.59,0.00020547,2]
[349690361,1737377470389,-1871.8,0.00020547,2]
[349690362,1737377470399,-1086.25,0.00020547,2]
[349690363,1737377470408,-2312.31,0.00020547,2]
[349690364,1737377470418,-3725.5,0.00020547,2]
[349690365,1737377470429,-500.0,0.00020547,2]
[349690366,1737377470438,-500.0,0.00020547,2]
[349690367,1737377470448,-1721.32,0.00020547,2]
[349690368,1737377470458,-3500.19,0.00020547,2]
[349690369,1737377470468,-500.0,0.00020547,2]
[349690370,1737377470478,-1374.5,0.00020547,2]
[349690371,1737377470487,-500.0,0.00020547,2]
[349690372,1737377470497,-1285.87,0.00020547,2]
[349690373,1737377470508,-1008.2,0.00020547,2]
[349690374,1737377470521,-500.0,0.00020547,2]
[349690375,1737377470531,-500.0,0.00020547,2]
[349690376,1737377470540,-572.39,0.00020547,2]
[349690377,1737377470551,-1238.99,0.00020547,2]
[349690378,1737377470560,-500.0,0.00020547,2]
[349690379,1737377470570,-500.0,0.00020547,2]
[349690380,1737377470580,-500.0,0.00020547,2]
[349690381,1737377470590,-4448.38,0.00020547,2]
[349690382,1737377470599,-500.0,0.00020547,2]
[349690383,1737377470609,-500.0,0.00020547,2]
[349690384,1737377470618,-1222.11,0.00020547,2]
[349690385,1737377470628,-936.38,0.00020547,2]
[349690386,1737377470638,-500.0,0.00020547,2]
[349690387,1737377470647,-1024.64,0.00020547,2]
[349690388,1737377470657,-500.0,0.00020547,2]
[349690389,1737377470667,-4455.07,0.00020547,2]
[349690390,1737377470677,-634.84,0.00020547,2]
[349690391,1737377470687,-500.0,0.00020547,2]
[349690392,1737377470696,-500.0,0.00020547,2]
[349690393,1737377470706,-500.0,0.00020547,2]
[349690394,1737377470716,-1718.2,0.00020547,2]
[349690395,1737377470743,-1517.42,0.00020547,2]
[349690396,1737377470753,-500.0,0.00020547,2]
[349690397,1737377470763,-500.0,0.00020547,2]
[349690398,1737377470775,-500.0,0.00020547,2]
[349690399,1737377470785,-881.03,0.00020547,2]
[349690400,1737377470794,-500.0,0.00020547,2]
[349690401,1737377470804,-500.0,0.00020547,2]
[349690402,1737377470814,-500.0,0.00020547,2]
[349690403,1737377470823,-177.09,0.000206,2]
[349690404,1737377470833,-500.0,0.00020627,2]
[349690405,1737377470842,-500.0,0.00020627,2]
[349690406,1737377470852,-500.0,0.00020627,2]
[349690407,1737377470861,-505.86,0.00020627,2]
[349690408,1737377470871,-725.93,0.00020627,2]
[349690409,1737377470881,-500.0,0.00020627,2]
[349690410,1737377470890,-500.0,0.00020627,2]
[349690411,1737377470900,-1112.19,0.00020627,2]
[349690412,1737377470910,-500.0,0.00020627,2]
[349690413,1737377470919,-2796.22,0.00020627,2]
[349690414,1737377470929,-500.0,0.00020627,2]
[349690415,1737377470938,-500.0,0.00020627,2]
[349690416,1737377470947,-500.0,0.00020627,2]
[349690417,1737377470956,-500.0,0.00020627,2]
[349690418,1737377470966,-500.0,0.00020627,2]
[349690419,1737377470975,-860.7,0.00020627,2]
[349690420,1737377470986,-746.27,0.00020627,2]
[349690421,1737377470995,-500.0,0.00020627,2]
[349690422,1737377471005,-500.0,0.00020627,2]
[349690423,1737377471015,-500.0,0.00020627,2]
[349690424,1737377471029,-500.0,0.00020627,2]
[349690425,1737377471038,-656.76,0.00020627,2]
[349690426,1737377471048,-500.0,0.00020627,2]
[349690427,1737377471059,-500.0,0.00020627,2]
[349690428,1737377471068,-500.0,0.00020627,2]
[349690429,1737377471078,-844.35,0.00020627,2]
[349690430,1737377471088,-500.0,0.00020627,2]
[349690431,1737377471099,-500.0,0.00020627,2]
[349690432,1737377471108,-500.0,0.00020627,2]
[349690433,1737377471118,-500.0,0.00020627,2]
[349690434,1737377471127,-500.0,0.00020627,2]
[349690435,1737377471137,-554.98,0.00020627,2]
[349690436,1737377471147,-500.0,0.00020627,2]
[349690437,1737377471157,-706.13,0.00020627,2]
[349690438,1737377471167,-500.0,0.00020627,2]
[349690439,1737377471177,-500.0,0.00020627,2]
[349690440,1737377471186,-700.5,0.00020627,2]
[349690441,1737377471195,-500.0,0.00020627,2]
[349690442,1737377471205,-817.82,0.00020627,2]
[349690443,1737377471215,-500.0,0.00020627,2]
[349690444,1737377471224,-500.0,0.00020627,2]
[349690445,1737377471234,-500.0,0.00020627,2]
[349690446,1737377471244,-840.73,0.00020627,2]
[349690447,1737377471254,-500.0,0.00020627,2]
[349690448,1737377471264,-978.26,0.00020627,2]
[349690449,1737377471280,-807.37,0.00020627,2]
[349690450,1737377471290,-300.24687805,0.00020627,2]
[349690451,1737377471300,-535.23,0.00020627,2]
[349690452,1737377471309,-911.36,0.00020627,2]
[349690453,1737377471319,-918.51,0.00020627,2]
[349690454,1737377471329,-500.0,0.00020627,2]
[349690455,1737377471338,-761.42,0.00020627,2]
[349690456,1737377471348,-500.0,0.00020627,2]
[349690457,1737377471358,-500.0,0.00020627,2]
[349690458,1737377471367,-2935.79,0.00020627,2]
[349690459,1737377471377,-500.0,0.00020627,2]
[349690460,1737377471386,-4234.6,0.00020627,2]
[349690461,1737377471395,-766.29,0.00020627,2]
[349690462,1737377471406,-727.87,0.00020627,2]
[349690463,1737377471415,-3864.35,0.00020627,2]
[349690464,1737377471425,-500.0,0.00020627,2]
[349690465,1737377471435,-500.0,0.00020627,2]
[349690466,1737377471445,-1299.27,0.00020627,2]
[349690467,1737377471454,-3588.13,0.00020627,2]
[349690468,1737377471464,-2046.38,0.00020627,2]
[349690469,1737377471474,-1932.2,0.00020627,2]
[349690470,1737377471484,-576.23,0.00020627,2]
[349690471,1737377471494,-500.0,0.00020627,2]
[349690472,1737377471504,-1757.51,0.00020627,2]
[349690473,1737377471514,-1791.29,0.00020627,2]
[349690474,1737377471528,-2156.53,0.00020627,2]
[349690475,1737377471537,-2141.05,0.00020627,2]
[349690476,1737377471547,-1660.42,0.00020627,2]
[349690477,1737377471557,-500.0,0.00020627,2]
[349690478,1737377471567,-1133.61,0.00020627,2]
[349690479,1737377471576,-555.92,0.00020627,2]
[349690480,1737377471585,-2180.96,0.00020627,2]
[349690481,1737377471595,-500.0,0.00020627,2]
[349690482,1737377471604,-645.51,0.00020627,2]
[349690483,1737377471614,-561.67,0.00020627,2]
[349690484,1737377471624,-2173.11,0.00020627,2]
[349690485,1737377471634,-500.0,0.00020627,2]
[349690486,1737377471643,-1564.48,0.00020627,2]
[349690487,1737377471653,-500.0,0.00020627,2]
[349690488,1737377471662,-1133.54,0.00020627,2]
[349690489,1737377471672,-1145.98,0.00020627,2]
[349690490,1737377471682,-500.0,0.00020627,2]
[349690491,1737377471691,-752.83,0.00020627,2]
[349690492,1737377471701,-500.0,0.00020627,2]
[349690493,1737377471711,-500.0,0.00020627,2]
[349690494,1737377471721,-560.53,0.00020627,2]
[349690495,1737377471731,-766.9,0.00020627,2]
[349690496,1737377471741,-500.0,0.00020627,2]
[349690497,1737377471751,-500.0,0.00020627,2]
[349690498,1737377471760,-660.28,0.00020627,2]
[349690499,1737377471772,-943.53,0.00020627,2]
[349690500,1737377471782,-1337.38,0.00020627,2]
[349690501,1737377471792,-771.84,0.00020627,2]
[349690502,1737377471802,-500.0,0.00020627,2]
[349690503,1737377471812,-500.0,0.00020627,2]
[349690504,1737377471821,-1005.87,0.00020627,2]
[349690505,1737377471831,-1060.85,0.00020627,2]
[349690506,1737377471841,-500.0,0.00020627,2]
[349690507,1737377471851,-500.0,0.00020627,2]
[349690508,1737377471861,-980.61,0.00020627,2]
[349690509,1737377471870,-874.79,0.00020627,2]
[349690510,1737377471880,-1402.18,0.00020627,2]
[349690511,1737377471890,-500.0,0.00020627,2]
[349690512,1737377471900,-1129.67,0.00020627,2]
[349690513,1737377471910,-535.06,0.00020627,2]
[349690514,1737377471919,-2752.84,0.00020627,2]
[349690515,1737377471929,-7842.41690614,0.00020646,2]
[349690516,1737377471938,-204.71864207,0.00020669,2]
[349690517,1737377471948,-1340.5827597,0.0002068,2]
[349690518,1737377471957,-506.24799734,0.00020763,2]
[349690519,1737377471967,-500.0,0.00020821,2]
[349690520,1737377471976,-202.85641197,0.00020821,2]
[349690521,1737377471985,-500.0,0.00020821,2]
[349690522,1737377471995,-546.17,0.00020821,2]
[349690523,1737377472004,-500.0,0.00020821,2]
[349690524,1737377472014,-500.0,0.00020821,2]
[349690525,1737377472030,-500.0,0.00020821,2]
[349690526,1737377472039,-500.0,0.00020821,2]
[349690527,1737377472049,-500.0,0.00020821,2]
[349690528,1737377472058,-500.0,0.00020821,2]
[349690529,1737377472068,-500.0,0.00020821,2]
[349690530,1737377472077,-500.0,0.00020821,2]
[349690531,1737377472087,-796.95,0.00020821,2]
[349690532,1737377472096,-500.0,0.00020821,2]
[349690533,1737377472106,-500.0,0.00020821,2]
[349690534,1737377472116,-500.0,0.00020821,2]
[349690535,1737377472127,-622.67,0.00020821,2]
[349690536,1737377472136,-500.0,0.00020821,2]
[349690537,1737377472146,-500.0,0.00020821,2]
[349690538,1737377472156,-500.0,0.00020821,2]
[349690539,1737377472170,-500.0,0.00020821,2]
[349690540,1737377472180,-500.0,0.00020821,2]
[349690541,1737377472189,-500.0,0.00020821,2]
[349690542,1737377472198,-500.0,0.00020821,2]
[349690543,1737377472207,-500.0,0.00020821,2]
[349690544,1737377472217,-638.44,0.00020821,2]
[349690545,1737377472227,-500.0,0.00020821,2]
[349690546,1737377472236,-500.0,0.00020821,2]
[349690547,1737377472245,-500.0,0.00020821,2]
[349690548,1737377472255,-606.47,0.00020821,2]
[349690549,1737377472265,-500.0,0.00020821,2]
[349690550,1737377472278,-754.5,0.00020821,2]
[349690551,1737377472288,-526.69,0.00020821,2]
[349690552,1737377472298,-500.0,0.00020821,2]
[349690553,1737377472307,-500.0,0.00020821,2]
[349690554,1737377472317,-500.0,0.00020821,2]
[349690555,1737377472327,-500.0,0.00020821,2]
[349690556,1737377472337,-686.68,0.00020821,2]
[349690557,1737377472347,-500.0,0.00020821,2]
[349690558,1737377472357,-500.0,0.00020821,2]
[349690559,1737377472367,-500.0,0.00020821,2]
[349690560,1737377472377,-500.0,0.00020821,2]
[349690561,1737377472387,-500.0,0.00020821,2]
[349690562,1737377472396,-500.0,0.00020821,2]
[349690563,1737377472405,-500.0,0.00020821,2]
[349690564,1737377472415,-500.0,0.00020821,2]
[349690565,1737377472424,-500.0,0.00020821,2]
[349690566,1737377472433,-837.57,0.00020821,2]
[349690567,1737377472442,-500.0,0.00020821,2]
[349690568,1737377472451,-500.0,0.00020821,2]
[349690569,1737377472461,-500.0,0.00020821,2]
[349690570,1737377472470,-500.0,0.00020821,2]
[349690571,1737377472480,-500.0,0.00020821,2]
[349690572,1737377472491,-895.09,0.00020821,2]
[349690573,1737377472501,-500.0,0.00020821,2]
[349690574,1737377472511,-1166.48,0.00020821,2]
[349690575,1737377472524,-992.96,0.00020821,2]
[349690576,1737377472534,-500.0,0.00020821,2]
[349690577,1737377472544,-500.0,0.00020821,2]
[349690578,1737377472554,-1201.46,0.00020821,2]
[349690579,1737377472563,-521.42763089,0.00020821,2]
[349690580,1737377472573,-500.0,0.00020821,2]
[349690581,1737377472582,-648.59741008,0.00020821,2]
[349690582,1737377472592,-155.40298043,0.00020821,2]
[349690583,1737377472602,-500.0,0.00020821,2]
[349690584,1737377472612,-500.0,0.00020821,2]
[349690585,1737377472622,-533.19,0.00020821,2]
[349690586,1737377472631,-500.0,0.00020821,2]
[349690587,1737377472641,-500.0,0.00020821,2]
[349690588,1737377472651,-500.0,0.00020821,2]
[349690589,1737377472660,-500.0,0.00020821,2]
[349690590,1737377472670,-500.0,0.00020821,2]
[349690591,1737377472807,-1289.76,0.00020821,2]
[349690592,1737377472818,-500.0,0.00020821,2]
[349690593,1737377472828,-743.97,0.00020821,2]
[349690594,1737377472838,-500.0,0.00020821,2]
[349690595,1737377472847,-504.49266907,0.00020821,2]
[349690596,1737377472857,-500.0,0.00020821,2]
[349690597,1737377472866,-305.19066929,0.00020821,2]
[349690598,1737377472876,-500.0,0.00020821,2]
[349690599,1737377472885,-500.0,0.00020821,2]
[349690600,1737377472895,-771.55,0.00020821,2]
[349690601,1737377472905,-1230.0,0.00020821,2]
[349690602,1737377472914,-500.0,0.00020821,2]
[349690603,1737377472924,-500.0,0.00020821,2]
[349690604,1737377472934,-500.0,0.00020821,2]
[349690605,1737377472944,-500.0,0.00020821,2]
[349690606,1737377472953,-500.0,0.00020821,2]
[349690607,1737377472962,-500.0,0.00020821,2]
[349690608,1737377472971,-500.0,0.00020821,2]
[349690609,1737377472980,-500.0,0.00020821,2]
[349690610,1737377472990,-500.0,0.00020821,2]
[349690611,1737377472999,-500.0,0.00020821,2]
[349690612,1737377473009,-500.0,0.00020821,2]
[349690613,1737377473022,-500.0,0.00020821,2]
[349690614,1737377473031,-500.0,0.00020821,2]
[349690615,1737377473040,-500.0,0.00020821,2]
[349690616,1737377473051,-1612.66,0.00020821,2]
[349690617,1737377473061,-500.0,0.00020821,2]
[349690618,1737377473071,-500.0,0.00020821,2]
[349690619,1737377473080,-500.0,0.00020821,2]
[349690620,1737377473090,-536.54,0.00020821,2]
[349690621,1737377473104,-3644.75,0.00020821,2]
[349690622,1737377473114,-500.0,0.00020821,2]
[349690623,1737377473123,-486.55938907,0.00020821,2]
[349690624,1737377473132,-500.0,0.00020821,2]
[349690625,1737377473143,-500.0,0.00020821,2]
[349690626,1737377473153,-626.19,0.00020821,2]
[349690627,1737377473163,-500.0,0.00020821,2]
[349690628,1737377473173,-756.469785,0.00020821,2]
[349690629,1737377473182,-500.0,0.00020821,2]
[349690630,1737377473192,-500.0,0.00020821,2]
[349690631,1737377473201,-1134.53,0.00020821,2]
[349690632,1737377473211,-5822.0,0.00020821,2]
[349690633,1737377473220,-732.04,0.00020821,2]
[349690634,1737377473229,-500.0,0.00020821,2]
[349690635,1737377473239,-1092.62,0.00020821,2]
[349690636,1737377473248,-923.97,0.00020821,2]
[349690637,1737377473258,-970.989995,0.00020821,2]
[349690638,1737377473270,-500.0,0.00020821,2]
[349690639,1737377473282,-1139.04,0.00020821,2]
[349690640,1737377473291,-1401.76,0.00020821,2]
[349690641,1737377473301,-500.0,0.00020821,2]
[349690642,1737377473311,-500.0,0.00020821,2]
[349690643,1737377473320,-500.0,0.00020821,2]
[349690644,1737377473330,-2199.52,0.00020821,2]
[349690645,1737377473340,-1107.27,0.00020821,2]
[349690646,1737377473349,-500.0,0.00020821,2]
[349690647,1737377473358,-500.0,0.00020821,2]
[349690648,1737377473368,-1073.92,0.00020821,2]
[349690649,1737377473378,-574.83,0.00020821,2]
[349690650,1737377473388,-500.0,0.00020821,2]
[349690651,1737377473397,-3230.06,0.00020821,2]
[349690652,1737377473407,-500.0,0.00020821,2]
[349690653,1737377473417,-500.0,0.00020821,2]
[349690654,1737377473426,-500.0,0.00020821,2]